bitfinex/quotes_BTCUSD_20260215
["timestamp","ask_amount","ask_price","bid_price","bid_amount"]
[1771147750180,0.02321475,70660.0,70656.0,0.07076466]
[1771147750755,0.02321475,70660.0,70657.0,0.07076416]
[1771147750967,0.02321475,70660.0,70656.0,0.07076374]
[1771147751404,0.0002433,70660.0,70657.0,0.07076438]
[1771147751510,0.0002433,70660.0,70656.0,0.07076374]
[1771147751716,0.0002433,70660.0,70651.0,0.28307944]
[1771147751717,0.0002433,70660.0,70657.0,0.07076373]
[1771147752958,0.0002433,70660.0,70658.0,0.07076293]
[1771147753190,0.0002433,70660.0,70657.0,0.07076278]
[1771147753733,0.0002433,70660.0,70650.0,0.60178081]
[1771147753935,0.07076239,70659.0,70654.0,0.0707671]
[1771147754169,0.07100651,70660.0,70654.0,0.0707671]
[1771147754329,0.07100651,70660.0,70655.0,0.07076588]
[1771147755555,0.07076262,70659.0,70654.0,0.0707671]
[1771147756196,0.07076347,70658.0,70653.0,0.07076683]
[1771147756735,0.0002433,70660.0,70653.0,0.07076683]
[1771147756736,0.0002433,70660.0,70656.0,0.0707651]
[1771147758367,0.0002433,70660.0,70657.0,0.07076415]
[1771147759544,0.0004433,70660.0,70657.0,0.07076415]
[1771147762622,0.0004433,70660.0,70658.0,0.07076339]
[1771147762832,0.0004433,70660.0,70659.0,0.07076239]
[1771147763060,5.5e-05,70663.0,70660.0,0.07076138]
[1771147763239,5.5e-05,70663.0,70659.0,0.07076202]
[1771147763679,0.07075783,70664.0,70659.0,0.07076202]
[1771147765802,0.07075803,70665.0,70660.0,0.07076128]
[1771147766011,0.07075798,70664.0,70659.0,0.07076202]
[1771147766709,0.00739146,70671.0,70665.0,0.07075583]
[1771147766896,0.36240928,70670.0,70660.0,0.60145651]
[1771147767091,0.43316101,70670.0,70665.0,0.07075595]
[1771147767559,0.43316101,70670.0,70664.0,0.07075568]
[1771147767760,0.07075246,70669.0,70664.0,0.07075568]
[1771147768084,0.07075279,70669.0,70664.0,0.07075568]
[1771147768741,0.07075671,70665.0,70660.0,0.67221772]
[1771147768946,0.07075671,70665.0,70660.0,0.07076121]
[1771147769136,0.07075593,70666.0,70661.0,0.07076035]
[1771147769340,0.07075666,70665.0,70660.0,0.07076132]
[1771147770370,0.07075742,70664.0,70659.0,0.07076206]
[1771147772157,0.07075842,70663.0,70657.0,0.07076268]
[1771147772335,0.0707597,70662.0,70657.0,0.07076268]
[1771147772863,0.07075842,70663.0,70658.0,0.07076325]
[1771147773205,0.0707594,70662.0,70657.0,0.07076268]
[1771147773398,0.0707594,70662.0,70658.0,0.07076333]
[1771147773601,0.07075842,70663.0,70658.0,0.07076333]
[1771147773869,0.07076115,70661.0,70650.0,0.884706]
[1771147774079,0.0707617,70660.0,70655.0,0.07076546]
[1771147774275,0.09401098,70660.0,70655.0,0.07076546]
[1771147775039,0.02324928,70660.0,70655.0,0.07076546]
[1771147775238,0.02324928,70660.0,70656.0,0.07076506]
[1771147775984,0.02324928,70660.0,70657.0,0.07076402]
[1771147776186,0.02324928,70660.0,70650.0,0.0001667]
[1771147776388,0.14754262,70663.0,70650.0,0.0001667]
[1771147776389,0.02324928,70657.0,70653.0,0.07076831]
[1771147776616,0.02324928,70657.0,70653.0,0.07076803]
[1771147776891,0.02324928,70657.0,70653.0,0.07076807]
[1771147777237,0.02324928,70657.0,70654.0,0.07076728]
[1771147777442,0.02324928,70657.0,70654.0,0.07076738]
[1771147777892,0.02324928,70657.0,70653.0,0.07076837]
[1771147778451,0.02324928,70657.0,70654.0,0.07076739]
[1771147779006,0.02324928,70657.0,70654.0,0.07076735]
[1771147779636,0.14754262,70657.0,70654.0,0.07076735]
[1771147779900,0.02324928,70656.0,70655.0,0.0707664]
[1771147781167,0.0002,70660.0,70657.0,0.07076419]
[1771147781398,0.0002,70660.0,70658.0,0.07076335]
[1771147781542,0.0002,70660.0,70659.0,0.07076239]
[1771147781741,0.0002,70665.0,70657.0,0.07076419]
[1771147781946,0.07075577,70666.0,70661.0,0.07076038]
[1771147782125,0.07075577,70666.0,70661.0,0.07076012]
[1771147783964,0.09439818,70666.0,70661.0,0.07076012]
[1771147784172,0.02364241,70666.0,70653.0,0.0228543]
[1771147784367,0.07075906,70663.0,70658.0,0.07076328]
[1771147788369,0.07075647,70665.0,70660.0,0.07076058]
[1771147788578,0.07075738,70664.0,70660.0,0.05649823]
[1771147788865,0.0002,70665.0,70657.0,0.07076439]
[1771147789063,0.0002,70665.0,70662.0,0.07075853]
[1771147789817,5.131e-05,70664.0,70662.0,0.06019464]
[1771147790364,5.131e-05,70664.0,70663.0,0.07075838]
[1771147790833,5.131e-05,70664.0,70662.0,0.08445762]
[1771147793686,5.131e-05,70664.0,70663.0,0.07075838]
[1771147794099,5.131e-05,70664.0,70662.0,0.08445762]
[1771147794302,5.131e-05,70664.0,70662.0,0.02426298]
[1771147795704,0.07075969,70662.0,70657.0,0.02426298]
[1771147795906,0.07075969,70662.0,70657.0,0.09502709]
[1771147797217,0.07075969,70662.0,70657.0,0.07076411]
[1771147797845,0.07075969,70662.0,70657.0,0.07076427]
[1771147798190,0.07076067,70661.0,70656.0,0.07076442]
[1771147798312,0.07076067,70661.0,70657.0,0.07076439]
[1771147798512,0.07075969,70662.0,70657.0,0.07076439]
[1771147798751,0.07076051,70661.0,70656.0,0.07076442]
[1771147798927,0.07081182,70661.0,70656.0,0.07076442]
[1771147799574,0.07076148,70660.0,70655.0,0.07076605]
[1771147799769,0.07081182,70661.0,70656.0,0.0707653]
[1771147800399,5.131e-05,70661.0,70657.0,0.07076412]
[1771147802294,0.07076147,70660.0,70656.0,0.00022]
[1771147802511,0.07076265,70659.0,70656.0,0.00022]
[1771147802953,0.07076275,70659.0,70656.0,0.00022]
[1771147803123,5.131e-05,70661.0,70656.0,0.00022]
[1771147803124,0.07081343,70661.0,70656.0,0.00022]
[1771147803357,5.131e-05,70661.0,70657.0,0.06023417]
[1771147803535,5.131e-05,70661.0,70659.0,0.07076178]
[1771147803720,5.131e-05,70661.0,70658.0,0.07076267]
[1771147803916,5.131e-05,70661.0,70656.0,0.28328065]
[1771147803917,5.131e-05,70661.0,70657.0,0.07076267]
[1771147804327,0.07076794,70654.0,70650.0,0.0003867]
[1771147804631,0.02364241,70653.0,70643.0,0.0003267]
[1771147804978,0.0707695,70652.0,70647.0,0.07099397]
[1771147805127,0.02364241,70651.0,70647.0,0.07099397]
[1771147805537,0.02364241,70651.0,70648.0,0.07077295]
[1771147805792,0.02364241,70651.0,70647.0,0.00022]
[1771147805793,0.07076812,70655.0,70650.0,0.0707714]
[1771147805997,0.09440998,70654.0,70649.0,0.07077208]
[1771147806594,0.07076757,70654.0,70649.0,0.07077208]
[1771147806801,5.131e-05,70654.0,70650.0,0.07077118]
[1771147807680,5.131e-05,70654.0,70647.0,0.27232192]
[1771147807883,5.131e-05,70654.0,70650.0,0.07077132]
[1771147808235,0.28305794,70657.0,70644.0,0.94061651]
[1771147808236,0.07076071,70661.0,70655.0,0.07076607]
[1771147808436,0.07076071,70661.0,70656.0,0.07076496]
[1771147808983,0.07076112,70662.0,70656.0,0.07076496]
[1771147809207,0.28322993,70664.0,70657.0,0.07076426]
[1771147809208,0.07076004,70663.0,70657.0,0.07076426]
[1771147809411,0.07095746,70664.0,70659.0,0.07076239]
[1771147809615,0.07075991,70662.0,70657.0,0.07076412]
[1771147810845,0.07076065,70661.0,70656.0,0.09502757]
[1771147811045,0.07076041,70661.0,70656.0,0.09502674]
[1771147811389,0.0709578,70664.0,70659.0,0.07076157]
[1771147811819,0.07075865,70663.0,70658.0,0.07076162]
[1771147812425,0.0709578,70664.0,70657.0,0.02426298]
[1771147812426,0.07076041,70661.0,70657.0,0.02426298]
[1771147812629,0.07076539,70656.0,70655.0,7.343e-05]
[1771147815949,0.07076539,70656.0,70651.0,0.06023276]
[1771147816290,0.07076539,70656.0,70651.0,0.07076985]
[1771147817031,0.07096539,70656.0,70651.0,0.07076985]
[1771147818034,0.28304557,70670.0,70651.0,0.0707704]
[1771147818189,0.07076222,70660.0,70654.0,0.07076651]
[1771147818578,0.07076222,70660.0,70655.0,0.07076591]
[1771147818982,0.07076098,70661.0,70652.0,0.02409924]
[1771147819193,0.07076182,70660.0,70655.0,0.07076577]
[1771147823688,0.07076521,70657.0,70652.0,0.07076915]
[1771147823870,0.07076521,70657.0,70652.0,0.06992312]
[1771147824072,0.0002,70660.0,70650.0,4e-05]
[1771147824281,0.07076848,70653.0,70650.0,0.60146459]
[1771147824492,0.07076848,70653.0,70650.0,4e-05]
[1771147824692,0.0707704,70651.0,70650.0,4e-05]
[1771147825687,0.0707704,70651.0,70644.0,0.40993693]
[1771147825688,0.1468394,70656.0,70640.0,4e-05]
[1771147825933,0.07077799,70644.0,70640.0,4e-05]
[1771147826108,0.0707797,70642.0,70640.0,4e-05]
[1771147826519,0.09576005,70643.0,70640.0,4e-05]
[1771147826720,0.07077954,70642.0,70640.0,4e-05]
[1771147826966,0.0249809,70642.0,70640.0,4e-05]
[1771147827453,0.09576033,70642.0,70640.0,0.00047249]
[1771147827857,0.07078042,70641.0,70640.0,0.00047249]
[1771147828542,0.0249809,70642.0,70640.0,0.00047249]
[1771147829174,0.07078042,70641.0,70640.0,0.00032542]
[1771147829442,0.07078042,70641.0,70634.0,0.07098591]
[1771147829443,0.33912,70643.0,70620.0,0.00024]
[1771147829558,0.07079486,70627.0,70622.0,0.07112611]
[1771147829962,0.07079398,70628.0,70622.0,0.07112611]
[1771147830211,0.07079398,70628.0,70623.0,0.07079832]
[1771147830405,0.07079398,70628.0,70622.0,0.07112611]
[1771147830406,0.07078988,70632.0,70626.0,0.07079498]
[1771147830649,0.07078988,70632.0,70627.0,0.0707943]
[1771147830772,0.07078927,70633.0,70626.0,0.07079496]
[1771147830773,0.07078844,70633.0,70626.0,0.07079496]
[1771147830970,0.07079112,70631.0,70626.0,0.07079496]
[1771147831286,0.07079121,70631.0,70626.0,0.07079487]
[1771147831810,0.07079121,70631.0,70624.0,0.07079698]
[1771147832010,0.07079355,70628.0,70622.0,0.0002]
[1771147832936,0.07079355,70628.0,70623.0,0.0707984]
[1771147833904,0.07079355,70628.0,70622.0,0.07099879]
[1771147835321,0.07079355,70628.0,70623.0,0.07079835]
[1771147835543,0.070794,70629.0,70623.0,0.07079835]
[1771147835702,0.07079407,70628.0,70622.0,0.0002]
[1771147835906,0.07079489,70627.0,70622.0,0.0002]
[1771147836152,0.07079407,70628.0,70622.0,0.0002]
[1771147836360,0.07079407,70628.0,70622.0,0.07099882]
[1771147837105,0.07079407,70628.0,70623.0,0.07079839]
[1771147837310,0.07079474,70627.0,70623.0,0.00022]
[1771147837842,0.07079407,70628.0,70623.0,0.00022]
[1771147838367,0.07079407,70628.0,70623.0,0.07101827]
[1771147838816,0.07079372,70628.0,70623.0,0.07101831]
[1771147838988,0.09577462,70628.0,70623.0,0.07101831]
[1771147839651,0.0249809,70628.0,70623.0,0.00022]
[1771147839924,0.0707959,70626.0,70623.0,0.00022]
[1771147840281,0.09577593,70627.0,70623.0,0.00022]
[1771147840913,0.28318341,70626.0,70621.0,0.0002]
[1771147841111,0.07079946,70622.0,70621.0,0.0002]
[1771147841311,0.07079842,70624.0,70619.0,0.0002]
[1771147841472,0.09577971,70623.0,70619.0,0.0002]
[1771147841678,0.07079949,70622.0,70619.0,0.0002]
[1771147841986,0.07080101,70621.0,70619.0,0.0002]
[1771147842792,0.07079949,70622.0,70619.0,0.0002]
[1771147843199,0.07079949,70622.0,70619.0,0.00024324]
[1771147843662,0.07080135,70621.0,70619.0,0.00024324]
[1771147843876,0.07080147,70620.0,70619.0,0.00024324]
[1771147845024,0.07080147,70620.0,70619.0,1e-08]
[1771147846661,0.07080135,70621.0,70600.0,0.15027522]
[1771147846662,0.15758294,70621.0,70600.0,0.15027522]
[1771147846837,0.3392,70631.0,70600.0,0.15027522]
[1771147846838,2.9e-07,70604.0,70600.0,0.02421811]
[1771147847157,0.07081836,70604.0,70600.0,0.02430991]
[1771147847514,0.07081877,70603.0,70600.0,0.02430991]
[1771147847906,0.07081993,70602.0,70600.0,0.0001318]
[1771147848124,0.07082052,70601.0,70600.0,0.0001318]
[1771147848305,2.9e-07,70604.0,70600.0,0.0709532]
[1771147848529,0.07081825,70604.0,70600.0,0.0001318]
[1771147848737,0.0708179,70604.0,70600.0,0.0001318]
[1771147848973,0.07081907,70603.0,70600.0,0.0001318]
[1771147849381,0.07082052,70601.0,70600.0,0.0001318]
[1771147849971,0.07081897,70603.0,70600.0,0.0001318]
[1771147850190,0.07082052,70601.0,70600.0,0.0001318]
[1771147850345,0.07081944,70603.0,70600.0,0.0001318]
[1771147850707,0.07082038,70602.0,70600.0,0.0001318]
[1771147850870,0.07082038,70602.0,70600.0,0.0003318]
[1771147851038,0.07081879,70603.0,70600.0,0.0003318]
[1771147851241,2.9e-07,70604.0,70600.0,0.0003318]
[1771147851445,2.9e-07,70604.0,70602.0,0.07081923]
[1771147851648,0.07081419,70608.0,70602.0,0.09499734]
[1771147851848,0.07081175,70610.0,70604.0,0.0708157]
[1771147852109,0.07081175,70610.0,70605.0,0.07081632]
[1771147852278,0.07081299,70609.0,70604.0,0.0708157]
[1771147852474,0.07081299,70609.0,70604.0,0.09499381]
[1771147853091,0.07081287,70609.0,70604.0,0.09499381]
[1771147853292,0.33924,70614.0,70604.0,0.09499381]
[1771147853497,4e-05,70620.0,70613.0,0.09498629]
[1771147853746,4e-05,70620.0,70613.0,0.02417811]
[1771147853886,0.07080247,70619.0,70613.0,0.02417811]
[1771147854096,0.07079897,70623.0,70610.0,0.88470657]
[1771147854352,0.07079952,70622.0,70616.0,0.02417811]
[1771147854570,0.07080061,70621.0,70617.0,0.02417811]
[1771147854963,0.07080061,70621.0,70616.0,0.07080517]
[1771147855109,0.07080167,70620.0,70614.0,0.07080585]
[1771147855519,0.07080167,70620.0,70615.0,0.07080643]
[1771147855908,0.07080167,70620.0,70615.0,0.09498454]
[1771147856110,0.07080167,70620.0,70615.0,0.02417811]
[1771147856266,0.07080249,70619.0,70615.0,0.02417811]
[1771147856873,0.07080167,70620.0,70615.0,0.02417811]
[1771147857211,0.07080253,70619.0,70615.0,0.02417811]
[1771147857638,0.07080941,70613.0,70610.0,4e-05]
[1771147857840,0.07080853,70613.0,70610.0,4e-05]
[1771147857979,0.07080965,70612.0,70610.0,4e-05]
[1771147858176,0.07080888,70613.0,70610.0,4e-05]
[1771147858584,0.07080765,70614.0,70610.0,4e-05]
[1771147859370,0.07080878,70613.0,70610.0,4e-05]
[1771147859817,0.0708071,70616.0,70610.0,4e-05]
[1771147860176,0.07079914,70623.0,70617.0,0.07080366]
[1771147860383,0.07080002,70622.0,70616.0,0.07080482]
[1771147860584,0.07080078,70621.0,70616.0,0.07080482]
[1771147860791,0.36361957,70631.0,70624.0,0.07079746]
[1771147860792,4e-05,70630.0,70624.0,0.07079746]
[1771147860994,0.07079548,70626.0,70619.0,0.15023522]
[1771147861200,4e-05,70630.0,70625.0,0.07079569]
[1771147861373,4e-05,70630.0,70626.0,0.07079493]
[1771147861577,4e-05,70630.0,70619.0,0.15023522]
[1771147861775,0.0707948,70627.0,70621.0,0.07079988]
[1771147861975,0.07086206,70627.0,70621.0,0.07079988]
[1771147862141,0.07079548,70626.0,70621.0,0.07079988]
[1771147862356,0.07079708,70625.0,70622.0,0.02417811]
[1771147862704,0.07079708,70625.0,70620.0,0.07079988]
[1771147862864,0.07079548,70626.0,70620.0,0.07079988]
[1771147863071,0.0708634,70627.0,70621.0,0.07080009]
[1771147863411,6.726e-05,70627.0,70624.0,0.02417811]
[1771147863835,6.726e-05,70627.0,70624.0,0.0707967]
[1771147864616,6.726e-05,70627.0,70622.0,0.07079788]
[1771147864806,0.0708624,70627.0,70621.0,0.07079995]
[1771147865604,0.07079577,70626.0,70621.0,0.07079995]
[1771147866007,0.00046726,70627.0,70622.0,0.07079933]
[1771147866184,0.0707956,70626.0,70621.0,0.07080022]
[1771147867368,0.07126235,70627.0,70621.0,0.07080022]
[1771147867732,0.07079563,70626.0,70621.0,0.07080022]
[1771147867928,0.07126235,70627.0,70626.0,0.07079545]
[1771147867929,0.00046726,70627.0,70626.0,0.07079545]
[1771147868165,0.00046726,70627.0,70624.0,0.07079676]
[1771147868369,0.00046726,70627.0,70625.0,0.07079595]
[1771147869002,0.00046726,70627.0,70626.0,0.02417811]
[1771147869362,0.00046726,70627.0,70623.0,0.02417811]
[1771147869590,0.07126182,70627.0,70623.0,0.02417811]
[1771147873122,0.00046726,70627.0,70624.0,0.07079743]
[1771147873316,0.06342247,70629.0,70624.0,0.07079743]
[1771147873493,0.07079345,70628.0,70623.0,0.09497631]
[1771147876328,0.28320611,70630.0,70618.0,0.60142459]
[1771147876329,4e-05,70630.0,70618.0,0.60142459]
[1771147876528,4e-05,70640.0,70620.0,1.20288918]
[1771147876729,4e-05,70640.0,70635.0,0.02347447]
[1771147876972,0.07105038,70639.0,70635.0,0.02347447]
[1771147877173,0.07105038,70639.0,70634.0,0.07078678]
[1771147877651,0.0002675,70639.0,70635.0,0.07078632]
[1771147878059,0.2835182,70642.0,70630.0,0.28316419]
[1771147878060,0.0004,70642.0,70630.0,0.28316419]
[1771147878260,0.0004,70642.0,70638.0,0.07078309]
[1771147878470,0.0004,70642.0,70633.0,0.1534941]
[1771147878669,0.0004,70642.0,70638.0,0.02347447]
[1771147879040,0.0004,70642.0,70639.0,0.02347447]
[1771147879469,0.0004,70642.0,70640.0,0.07078142]
[1771147879931,0.0004,70642.0,70641.0,0.07078042]
[1771147880078,0.0004,70642.0,70641.0,0.02347447]
[1771147880456,0.0004,70642.0,70641.0,0.07078042]
[1771147880661,0.00083247,70642.0,70641.0,0.07078042]
[1771147881465,0.56620022,70672.0,70640.0,0.07078095]
[1771147881671,0.00028258,70650.0,70643.0,0.02347447]
[1771147881898,0.00028258,70650.0,70646.0,0.09424982]
[1771147882099,0.00028258,70650.0,70646.0,0.07077535]
[1771147882301,0.00028258,70650.0,70647.0,0.05304136]
[1771147882707,0.00028258,70650.0,70646.0,0.07077535]
[1771147882907,0.00012081,70650.0,70646.0,0.07077535]
[1771147883327,0.01431995,70655.0,70643.0,0.02347447]
[1771147883502,0.01431995,70655.0,70652.0,0.02347447]
[1771147883688,0.01431995,70655.0,70652.0,0.09437306]
[1771147883898,0.0004,70657.0,70656.0,0.07076539]
[1771147884096,0.0707605,70661.0,70656.0,0.07076539]
[1771147884302,0.02368692,70666.0,70652.0,0.02360413]
[1771147884738,0.07076557,70656.0,70652.0,0.00012966]
[1771147885095,0.0707664,70655.0,70652.0,0.00112966]
[1771147885611,0.07076442,70657.0,70652.0,0.00012966]
[1771147886015,0.28303367,70663.0,70652.0,0.00012966]
[1771147886016,0.07076706,70655.0,70652.0,0.00012966]
[1771147886219,0.0707684,70653.0,70652.0,0.00012966]
[1771147886414,0.07076786,70654.0,70652.0,0.00012966]
[1771147887264,0.07076704,70656.0,70652.0,0.00012966]
[1771147887646,0.07076598,70657.0,70652.0,0.00012966]
[1771147888061,0.0004,70656.0,70654.0,0.07076686]
[1771147888408,0.0004,70656.0,70653.0,0.0707684]
[1771147888811,0.0004,70656.0,70654.0,0.07076716]
[1771147889049,0.0004,70656.0,70655.0,0.0707664]
[1771147889268,0.0707618,70660.0,70654.0,0.09424163]
[1771147889438,0.07076272,70659.0,70654.0,0.09424163]
[1771147889623,0.07076272,70659.0,70654.0,0.07076716]
[1771147890262,0.07076619,70656.0,70652.0,0.00012966]
[1771147892335,0.07076621,70657.0,70652.0,0.00012966]
[1771147892472,0.07076621,70657.0,70652.0,0.07089888]
[1771147893397,0.0707684,70653.0,70652.0,0.00012966]
[1771147893970,0.07076769,70654.0,70652.0,0.00012966]
[1771147894368,0.0707684,70653.0,70652.0,0.00012966]
[1771147894774,0.07076769,70654.0,70652.0,0.00012966]
[1771147894993,0.07076793,70655.0,70652.0,0.00012966]
[1771147896128,0.0004,70653.0,70652.0,0.00012966]
[1771147899095,0.07026983,70652.0,70650.0,4e-05]
[1771147899380,0.0707704,70651.0,70650.0,4e-05]
[1771147899572,0.00012959,70652.0,70640.0,0.62519618]
[1771147899744,0.02368692,70649.0,70636.0,0.07078506]
[1771147899944,0.02368692,70649.0,70637.0,0.07078414]
[1771147900177,0.75993351,70650.0,70637.0,0.07078414]
[1771147900178,0.07077988,70642.0,70637.0,0.07078395]
[1771147900375,0.07077988,70642.0,70636.0,0.07078479]
[1771147900555,0.07077923,70643.0,70637.0,0.07078383]
[1771147900760,0.07077923,70643.0,70636.0,0.07078543]
[1771147900959,0.07078009,70642.0,70636.0,0.07078543]
[1771147901970,0.07078045,70641.0,70636.0,0.07078543]
[1771147903189,0.07078009,70642.0,70636.0,0.07098543]
[1771147903387,0.07077989,70642.0,70637.0,0.07078443]
[1771147903636,0.07077959,70642.0,70637.0,0.07078443]
[1771147904134,0.02368692,70647.0,70636.0,0.0002]
[1771147904332,0.07078303,70639.0,70636.0,0.0002]
[1771147904534,0.60172171,70650.0,70636.0,0.0002]
[1771147904735,0.07077779,70644.0,70638.0,0.07078278]
[1771147904982,0.28308964,70649.0,70641.0,0.07078017]
[1771147905168,0.07077641,70645.0,70640.0,0.07077976]
[1771147905367,0.07077628,70646.0,70641.0,0.0707801]
[1771147905738,4e-05,70650.0,70640.0,0.0241131]
[1771147905939,4e-05,70650.0,70647.0,0.07077356]
[1771147906258,4e-05,70650.0,70648.0,0.07077319]
[1771147906783,4e-05,70650.0,70647.0,0.0241131]
[1771147906940,4e-05,70650.0,70647.0,0.09488733]
[1771147907846,4e-05,70650.0,70636.0,0.15040302]
[1771147908218,0.07077709,70645.0,70637.0,0.47288325]
[1771147908367,0.07077441,70648.0,70636.0,0.0002]
[1771147908574,0.07078111,70641.0,70636.0,0.0002]
[1771147908801,0.07078183,70640.0,70636.0,0.0002]
[1771147909000,0.07078243,70639.0,70636.0,0.0002]
[1771147909209,0.02385615,70643.0,70636.0,0.0002]
[1771147909210,0.07078408,70638.0,70636.0,0.0002]
[1771147909378,0.07078443,70637.0,70636.0,0.0002]
[1771147909584,0.07078408,70638.0,70636.0,0.0002]
[1771147909786,0.09463886,70639.0,70636.0,0.0002]
[1771147910303,0.07078271,70639.0,70636.0,0.0002]
[1771147910711,0.07078356,70638.0,70636.0,0.0002]
[1771147911795,0.07078271,70639.0,70634.0,0.44877015]
[1771147911990,4e-05,70650.0,70634.0,0.44877015]
[1771147912186,0.07077854,70643.0,70637.0,0.07078402]
[1771147913053,0.07077982,70642.0,70636.0,0.07078522]
[1771147914195,0.07077982,70642.0,70636.0,0.51955537]
[1771147914407,0.07077982,70642.0,70636.0,0.07078522]
[1771147915652,0.07078046,70641.0,70636.0,0.07078522]
[1771147916060,0.07078046,70641.0,70636.0,0.51955537]
[1771147917061,0.0707839,70638.0,70636.0,0.44877015]
[1771147917266,0.0707839,70638.0,70615.0,0.147]
[1771147917267,0.07079245,70629.0,70624.0,0.0707971]
[1771147917465,0.02385615,70633.0,70626.0,0.07079536]
[1771147917658,0.07078944,70632.0,70626.0,0.07079536]
[1771147918112,0.07078944,70632.0,70627.0,0.07079438]
[1771147918488,0.07078944,70632.0,70627.0,0.07122685]
[1771147918689,0.07078578,70636.0,70627.0,0.00043247]
[1771147919103,0.07078677,70635.0,70628.0,0.5195636]
[1771147919312,0.07078797,70634.0,70629.0,0.07079195]
[1771147919514,0.07078677,70635.0,70629.0,0.07079195]
[1771147920096,0.07078749,70634.0,70629.0,0.07079195]
[1771147921074,0.07078749,70634.0,70628.0,0.51956197]
[1771147921295,0.07078876,70633.0,70628.0,0.51956197]
[1771147921502,0.07078876,70633.0,70628.0,0.51956357]
[1771147921671,0.07078876,70633.0,70628.0,0.44877015]
[1771147922003,0.07079345,70628.0,70627.0,0.00043247]
[1771147922547,0.07079345,70628.0,70627.0,0.44920262]
[1771147923791,0.07079245,70629.0,70627.0,0.44920262]
[1771147924209,0.07079345,70628.0,70627.0,0.44920262]
[1771147924423,0.07079791,70624.0,70621.0,0.0002]
[1771147924646,0.0946496,70629.0,70621.0,0.0002]
[1771147924860,0.07079616,70626.0,70621.0,0.07100045]
[1771147925317,0.07079616,70626.0,70621.0,0.5197706]
[1771147925534,0.07079616,70627.0,70622.0,0.07079946]
[1771147925964,0.07079616,70627.0,70621.0,0.07100045]
[1771147926179,0.07079616,70627.0,70622.0,0.07079944]
[1771147926606,0.0707955,70626.0,70621.0,0.07100045]
[1771147926827,0.0707955,70626.0,70621.0,0.5197706]
[1771147927021,0.07079687,70625.0,70621.0,0.44897015]
[1771147927191,0.07079765,70624.0,70621.0,0.0002]
[1771147927536,0.07079765,70624.0,70622.0,0.44877015]
[1771147927982,0.07079765,70624.0,70621.0,0.0002]
[1771147927983,0.07079575,70626.0,70621.0,0.0002]
[1771147928187,0.07079575,70626.0,70621.0,0.07100038]
[1771147928401,0.07079575,70626.0,70621.0,0.51977053]
[1771147928833,0.09465225,70627.0,70622.0,0.07079936]
[1771147929662,0.07079566,70626.0,70621.0,0.07100038]
[1771147929865,0.07079566,70626.0,70621.0,0.44897015]
[1771147930080,0.07079566,70626.0,70621.0,0.51977028]
[1771147930287,0.07079669,70625.0,70621.0,0.44897015]
[1771147930496,0.07079714,70626.0,70621.0,0.44897015]
[1771147930712,0.07079714,70626.0,70621.0,0.51977029]
[1771147931977,0.07079471,70627.0,70622.0,0.07079935]
[1771147932191,0.07079471,70627.0,70622.0,0.0002]
[1771147932751,0.07079572,70626.0,70622.0,0.0002]
[1771147933751,0.07079785,70624.0,70622.0,0.0002]
[1771147934030,0.09530828,70625.0,70622.0,0.0002]
[1771147934233,0.02451135,70625.0,70622.0,0.0002]
[1771147934441,0.07079704,70626.0,70622.0,0.0002]
[1771147934700,0.07079647,70625.0,70622.0,0.0002]
[1771147935246,0.07079771,70624.0,70622.0,0.0002]
[1771147935432,0.07079846,70623.0,70622.0,0.0002]
[1771147935994,0.02451135,70623.0,70622.0,0.0002]
[1771147936205,0.09530981,70623.0,70622.0,0.0002]
[1771147936629,0.07079662,70625.0,70622.0,0.0002]
[1771147937071,0.07079768,70624.0,70622.0,0.0002]
[1771147937425,0.07079662,70625.0,70622.0,0.0002]
[1771147937802,0.07079445,70627.0,70622.0,0.0002]
[1771147938009,0.07079771,70624.0,70622.0,0.0002]
[1771147938762,0.07079658,70625.0,70622.0,0.0002]
[1771147939393,0.07079801,70624.0,70622.0,0.0002]
[1771147939598,0.07079846,70623.0,70622.0,0.0002]
[1771147940343,0.07079604,70626.0,70622.0,0.0002]
[1771147940544,0.07079604,70626.0,70622.0,0.44897015]
[1771147941245,0.07119604,70627.0,70622.0,0.51976931]
[1771147942042,0.07079558,70626.0,70622.0,0.51976931]
[1771147942473,0.07079058,70631.0,70622.0,0.47223729]
[1771147942635,0.07079186,70630.0,70625.0,0.07079595]
[1771147943064,0.07078615,70636.0,70626.0,0.44877015]
[1771147943279,0.07078883,70633.0,70627.0,0.07079445]
[1771147943591,0.07078985,70632.0,70627.0,0.5195646]
[1771147944153,0.0707907,70631.0,70627.0,0.44877015]
[1771147944354,0.07078985,70632.0,70627.0,0.44877015]
[1771147944355,0.07078985,70632.0,70627.0,0.51956432]
[1771147945143,0.28354673,70635.0,70627.0,0.44877015]
[1771147945144,0.0004,70635.0,70627.0,0.44877015]
[1771147945511,0.07079003,70632.0,70628.0,0.47203729]
[1771147945746,0.07079003,70632.0,70628.0,0.44877015]
[1771147947382,0.02451135,70628.0,70625.0,0.0002]
[1771147947591,0.07079974,70622.0,70620.0,4e-05]
[1771147947795,0.02451135,70623.0,70620.0,0.0001318]
[1771147948109,0.07079889,70623.0,70620.0,0.0001318]
[1771147948310,0.07079917,70624.0,70620.0,0.0001318]
[1771147948898,0.07079865,70623.0,70620.0,0.0001318]
[1771147949296,0.07079956,70622.0,70620.0,0.0001318]
[1771147949516,0.07079865,70623.0,70618.0,0.33916]
[1771147949715,0.07080079,70621.0,70618.0,0.33922726]
[1771147950486,0.07079919,70623.0,70618.0,0.33922726]
[1771147950787,0.07079948,70622.0,70618.0,0.33922726]
[1771147951149,0.07079919,70623.0,70618.0,0.33922726]
[1771147952753,0.07079919,70623.0,70618.0,0.41003061]
[1771147953175,0.07079919,70623.0,70618.0,0.33922726]
[1771147953394,0.02451135,70627.0,70618.0,0.33922726]
[1771147953581,0.070802,70620.0,70618.0,0.33922726]
[1771147955026,0.070802,70621.0,70618.0,0.33922726]
[1771147955600,0.070802,70621.0,70618.0,6.726e-05]
[1771147956131,0.070802,70621.0,70618.0,0.00026726]
[1771147957101,0.28319622,70623.0,70617.0,0.0002]
[1771147957102,0.07080347,70618.0,70617.0,0.00013179]
[1771147957306,0.07084667,70618.0,70617.0,0.00013179]
[1771147958173,4.32e-05,70618.0,70617.0,0.00013179]
[1771147959634,0.07084667,70618.0,70617.0,0.00013179]
[1771147959999,4.32e-05,70618.0,70617.0,0.00013179]
[1771147960718,0.07084667,70618.0,70617.0,0.00013179]
[1771147962430,0.07084667,70618.0,70614.0,0.0002]
[1771147962888,0.07080464,70617.0,70614.0,0.0002]
[1771147963063,0.07084667,70618.0,70614.0,0.0002]
[1771147964154,0.07084667,70618.0,70617.0,0.0002]
[1771147964370,0.07124667,70618.0,70617.0,0.0002]
[1771147968190,0.0004432,70618.0,70617.0,0.0002]
[1771147968975,0.0004,70626.0,70617.0,0.0002]
[1771147969224,0.07079971,70622.0,70617.0,0.09391484]
[1771147969433,0.0004,70626.0,70617.0,0.02311074]
[1771147969608,0.0004,70626.0,70622.0,0.07079859]
[1771147972218,0.28360586,70630.0,70622.0,0.07079859]